[Event "*** SCC Grand Prix: Titled Tuesday Blitz"]
[Site "Chess.com"]
[Date "2020.09.08"]
[Round "1"]
[White "poppy73"]
[Black "Meri-Arabidze"]
[Result "1-0"]
[WhiteElo "2258"]
[BlackElo "2554"]
[TimeControl "180+1"]
[EndTime "10:06:48 PDT"]
[Termination "poppy73 won by resignation"]

1. e4 {[%clk 0:03:00.9]} 1... c5 {[%clk 0:02:59.7]} 2. Nf3 {[%clk 0:03:00.8]}
2... e6 {[%clk 0:03:00.6]} 3. d4 {[%clk 0:03:01.1]} 3... cxd4 {[%clk 0:03:01.5]}
4. Nxd4 {[%clk 0:03:02]} 4... Nc6 {[%clk 0:03:02.4]} 5. Nc3 {[%clk 0:03:01.3]}
5... a6 {[%clk 0:03:03]} 6. Be2 {[%clk 0:02:59.4]} 6... Nf6 {[%clk 0:03:02.3]}
7. O-O {[%clk 0:02:57.8]} 7... d6 {[%clk 0:03:02.5]} 8. Be3 {[%clk 0:02:53.2]}
8... Be7 {[%clk 0:03:01.9]} 9. f4 {[%clk 0:02:53.2]} 9... O-O {[%clk 0:03:02.2]}
10. a4 {[%clk 0:02:50.3]} 10... Bd7 {[%clk 0:03:00.9]} 11. f5 {[%clk 0:02:38.8]}
11... Nxd4 {[%clk 0:02:59.5]} 12. Bxd4 {[%clk 0:02:37.7]} 12... e5 {[%clk
0:02:59.8]} 13. Be3 {[%clk 0:02:37.5]} 13... Bc6 {[%clk 0:02:59.1]} 14. Bf3
{[%clk 0:02:34.9]} 14... h6 {[%clk 0:02:54]} 15. a5 {[%clk 0:02:31.7]} 15... Rc8
{[%clk 0:02:51.7]} 16. Qd3 {[%clk 0:02:24.7]} 16... Qc7 {[%clk 0:02:43.1]} 17.
Bb6 {[%clk 0:02:23.3]} 17... Qb8 {[%clk 0:02:43]} 18. Rfd1 {[%clk 0:02:20.4]}
18... Nd7 {[%clk 0:02:36.9]} 19. Nd5 {[%clk 0:01:55.2]} 19... Bxd5 {[%clk
0:02:36.1]} 20. exd5 {[%clk 0:01:56.1]} 20... Nxb6 {[%clk 0:02:34.4]} 21. axb6
{[%clk 0:01:55.6]} 21... Rce8 {[%clk 0:02:30.5]} 22. c4 {[%clk 0:01:50]} 22...
Qd8 {[%clk 0:02:25.3]} 23. Qb3 {[%clk 0:01:46.8]} 23... Bg5 {[%clk 0:02:25.3]}
24. Be4 {[%clk 0:01:45]} 24... Qf6 {[%clk 0:02:23.2]} 25. Qc3 {[%clk 0:01:36.6]}
25... h5 {[%clk 0:02:21.5]} 26. b4 {[%clk 0:01:32.7]} 26... Qh6 {[%clk
0:02:18.6]} 27. Rd3 {[%clk 0:01:24.6]} 27... Rc8 {[%clk 0:02:10.9]} 28. c5
{[%clk 0:01:22.8]} 28... Bd8 {[%clk 0:02:08.5]} 29. Qa3 {[%clk 0:01:18.1]} 29...
Qf4 {[%clk 0:02:02.4]} 30. Re1 {[%clk 0:01:10.1]} 30... h4 {[%clk 0:01:57.6]}
31. Qa5 {[%clk 0:00:57.9]} 31... h3 {[%clk 0:01:50]} 32. g3 {[%clk 0:00:56.2]}
32... Qg4 {[%clk 0:01:39.4]} 33. c6 {[%clk 0:00:52.8]} 33... g6 {[%clk 0:01:38]}
34. c7 {[%clk 0:00:38.9]} 34... Bg5 {[%clk 0:01:37.5]} 35. b5 {[%clk 0:00:37.2]}
35... axb5 {[%clk 0:01:33.3]} 36. Qxb5 {[%clk 0:00:26]} 36... gxf5 {[%clk
0:01:32.1]} 37. Bf3 {[%clk 0:00:26.1]} 37... e4 {[%clk 0:01:11]} 38. Bxg4 {[%clk
0:00:26]} 38... exd3 {[%clk 0:01:11.3]} 39. Bxf5 {[%clk 0:00:21.5]} 39... d2
{[%clk 0:01:11.6]} 40. Rd1 {[%clk 0:00:21.8]} 40... Rce8 {[%clk 0:01:10.7]} 41.
Qxe8 {[%clk 0:00:20]} 41... Rxe8 {[%clk 0:01:10.2]} 42. c8=Q {[%clk 0:00:20.2]}
42... Rxc8 {[%clk 0:01:10.3]} 43. Bxc8 {[%clk 0:00:21.1]} 43... Be3+ {[%clk
0:01:09.4]} 44. Kf1 {[%clk 0:00:21.3]} 44... Bxb6 {[%clk 0:01:08.1]} 45. Rxd2
{[%clk 0:00:21.4]} 45... Bc5 {[%clk 0:01:08.5]} 46. Bxb7 {[%clk 0:00:20.8]}
46... Kg7 {[%clk 0:01:07.8]} 47. Bc8 {[%clk 0:00:21]} 1-0

[Event "*** SCC Grand Prix: Titled Tuesday Blitz"]
[Site "Chess.com"]
[Date "2020.09.08"]
[Round "1"]
[White "PSvidler"]
[Black "GameOverBro"]
[Result "1-0"]
[WhiteElo "2921"]
[BlackElo "2452"]
[TimeControl "180+1"]
[EndTime "10:06:49 PDT"]
[Termination "PSvidler won on time"]

1. e4 {[%clk 0:02:59.7]} 1... d6 {[%clk 0:02:59.8]} 2. d4 {[%clk 0:02:59.4]}
2... Nf6 {[%clk 0:02:59.9]} 3. Nc3 {[%clk 0:02:59.9]} 3... e5 {[%clk 0:02:59.9]}
4. Nf3 {[%clk 0:02:59.3]} 4... Nbd7 {[%clk 0:02:59.6]} 5. Bc4 {[%clk 0:02:59]}
5... Be7 {[%clk 0:02:59.7]} 6. O-O {[%clk 0:02:59]} 6... c6 {[%clk 0:02:59.6]}
7. a4 {[%clk 0:02:58.9]} 7... h6 {[%clk 0:02:59.1]} 8. Re1 {[%clk 0:02:58.6]}
8... Qc7 {[%clk 0:02:59.6]} 9. Be3 {[%clk 0:02:57.1]} 9... Nf8 {[%clk
0:02:59.7]} 10. a5 {[%clk 0:02:55.7]} 10... Ng6 {[%clk 0:02:59.7]} 11. h3 {[%clk
0:02:50.7]} 11... O-O {[%clk 0:02:59.4]} 12. Qe2 {[%clk 0:02:43.4]} 12... Nh5
{[%clk 0:02:49.2]} 13. g3 {[%clk 0:02:08.9]} 13... Bxh3 {[%clk 0:02:35.3]} 14.
Nh4 {[%clk 0:01:39.1]} 14... Nhf4 {[%clk 0:01:53.2]} 15. Bxf4 {[%clk 0:01:35.7]}
15... Bxh4 {[%clk 0:01:15.9]} 16. Be3 {[%clk 0:01:20.9]} 16... Bf6 {[%clk
0:00:16.5]} 17. Qh5 {[%clk 0:01:19.4]} 17... Bd7 {[%clk 0:00:10.3]} 18. Qxg6
{[%clk 0:01:04.5]} 18... d5 {[%clk 0:00:09.8]} 19. Nxd5 {[%clk 0:01:00.6]} 19...
cxd5 {[%clk 0:00:08]} 20. Bxd5 {[%clk 0:01:00.7]} 20... exd4 {[%clk 0:00:06.7]}
21. Bf4 {[%clk 0:01:00.9]} 21... Qxc2 {[%clk 0:00:06.2]} 22. Rac1 {[%clk
0:00:58.8]} 22... Qxb2 {[%clk 0:00:06.1]} 23. Rc7 {[%clk 0:00:58.5]} 23... Bc6
{[%clk 0:00:06.5]} 24. Bxf7+ {[%clk 0:00:56.2]} 24... Kh8 {[%clk 0:00:06.4]} 25.
Bxh6 {[%clk 0:00:56.2]} 25... Rxf7 {[%clk 0:00:05.2]} 26. Qxf7 {[%clk
0:00:54.9]} 26... d3 {[%clk 0:00:04]} 27. e5 {[%clk 0:00:49.2]} 27... Bxe5
{[%clk 0:00:03.8]} 28. Qh5 {[%clk 0:00:49.2]} 28... Kg8 {[%clk 0:00:02.7]} 29.
Bc1 {[%clk 0:00:27.8]} 29... Qc3 {[%clk 0:00:02.1]} 30. Qxe5 {[%clk 0:00:27.2]}
30... Qxe5 {[%clk 0:00:01.6]} 31. Rxe5 {[%clk 0:00:26.8]} 1-0

[Event "*** SCC Grand Prix: Titled Tuesday Blitz"]
[Site "Chess.com"]
[Date "2020.09.08"]
[Round "1"]
[White "YoreDea"]
[Black "Ural_bogatyr"]
[Result "1-0"]
[WhiteElo "2653"]
[BlackElo "2321"]
[TimeControl "180+1"]
[EndTime "10:06:49 PDT"]
[Termination "YoreDea won by resignation"]

1. e4 {[%clk 0:03:00.4]} 1... e5 {[%clk 0:02:57.9]} 2. Nf3 {[%clk 0:02:59.5]}
2... Nc6 {[%clk 0:02:57.5]} 3. d4 {[%clk 0:02:59.6]} 3... exd4 {[%clk
0:02:57.5]} 4. Bc4 {[%clk 0:02:59.7]} 4... Nf6 {[%clk 0:02:57.1]} 5. O-O {[%clk
0:02:56.3]} 5... Nxe4 {[%clk 0:02:56.7]} 6. Re1 {[%clk 0:02:55.7]} 6... d5
{[%clk 0:02:56.6]} 7. Bxd5 {[%clk 0:02:55.7]} 7... Qxd5 {[%clk 0:02:57.5]} 8.
Nc3 {[%clk 0:02:56.3]} 8... Qd8 {[%clk 0:02:57.3]} 9. Rxe4+ {[%clk 0:02:55.1]}
9... Be7 {[%clk 0:02:52.2]} 10. Nxd4 {[%clk 0:02:54.9]} 10... f5 {[%clk
0:02:36.9]} 11. Rf4 {[%clk 0:02:52.4]} 11... Bd6 {[%clk 0:02:01.3]} 12. Nxc6
{[%clk 0:02:40.4]} 12... bxc6 {[%clk 0:02:01.2]} 13. Ra4 {[%clk 0:02:27.4]}
13... O-O {[%clk 0:01:51.8]} 14. Be3 {[%clk 0:02:25.7]} 14... f4 {[%clk
0:01:47.9]} 15. Bxa7 {[%clk 0:02:20.3]} 15... Qg5 {[%clk 0:01:19.6]} 16. Ne4
{[%clk 0:02:10.4]} 16... Qg6 {[%clk 0:01:18.5]} 17. Nxd6 {[%clk 0:02:06.1]}
17... cxd6 {[%clk 0:01:16.6]} 18. f3 {[%clk 0:01:57.2]} 18... Rf7 {[%clk
0:00:59.1]} 19. Qd4 {[%clk 0:01:49.3]} 19... c5 {[%clk 0:00:37.5]} 20. Qc4
{[%clk 0:01:24.9]} 20... Be6 {[%clk 0:00:33.9]} 21. Qb5 {[%clk 0:01:25]} 21...
Qxc2 {[%clk 0:00:20.5]} 22. Re1 {[%clk 0:01:16.4]} 22... Bd7 {[%clk 0:00:19]}
23. Qb7 {[%clk 0:01:13.5]} 23... Qxa4 {[%clk 0:00:17.6]} 24. Qxa8+ {[%clk
0:01:12.1]} 24... Rf8 {[%clk 0:00:18]} 25. Qd5+ {[%clk 0:01:11.2]} 25... Kh8
{[%clk 0:00:16.7]} 26. Qxd6 {[%clk 0:01:11.3]} 26... Rg8 {[%clk 0:00:15.6]} 27.
Bxc5 {[%clk 0:01:10.9]} 27... Bf5 {[%clk 0:00:12.2]} 28. Bd4 {[%clk 0:01:08.7]}
28... Qxa2 {[%clk 0:00:10.8]} 29. Bxg7+ {[%clk 0:01:06.3]} 29... Rxg7 {[%clk
0:00:10.3]} 30. Re8+ {[%clk 0:01:04.8]} 30... Qg8 {[%clk 0:00:09.2]} 31. Rxg8+
{[%clk 0:01:03.1]} 31... Kxg8 {[%clk 0:00:10.1]} 32. Qd5+ {[%clk 0:01:01.7]}
32... Rf7 {[%clk 0:00:10]} 33. b4 {[%clk 0:01:01.5]} 33... Kg7 {[%clk
0:00:10.2]} 34. Qe5+ {[%clk 0:01:00.8]} 34... Kg6 {[%clk 0:00:09.9]} 35. Qxf4
{[%clk 0:01:00.8]} 35... Rd7 {[%clk 0:00:09.9]} 36. b5 {[%clk 0:00:59.8]} 36...
Rd1+ {[%clk 0:00:05.5]} 37. Kf2 {[%clk 0:01:00]} 37... Rb1 {[%clk 0:00:06.4]}
38. Qd6+ {[%clk 0:00:58.7]} 38... Kg7 {[%clk 0:00:05.1]} 39. g4 {[%clk
0:00:58.8]} 39... Bg6 {[%clk 0:00:04.5]} 40. b6 {[%clk 0:00:58.2]} 40... h6
{[%clk 0:00:02.3]} 41. Qc7+ {[%clk 0:00:56.2]} 41... Kf6 {[%clk 0:00:02.6]} 42.
b7 {[%clk 0:00:57.1]} 42... Kg5 {[%clk 0:00:02.8]} 1-0

[Event "*** SCC Grand Prix: Titled Tuesday Blitz"]
[Site "Chess.com"]
[Date "2020.09.08"]
[Round "1"]
[White "rakshi2005"]
[Black "BanjoKazooieN64"]
[Result "0-1"]
[WhiteElo "2253"]
[BlackElo "2578"]
[TimeControl "180+1"]
[EndTime "10:06:50 PDT"]
[Termination "BanjoKazooieN64 won by resignation"]

1. e4 {[%clk 0:03:00.8]} 1... e5 {[%clk 0:02:58]} 2. Nf3 {[%clk 0:03:00.9]} 2...
Nc6 {[%clk 0:02:57.9]} 3. Bc4 {[%clk 0:03:01.2]} 3... Bc5 {[%clk 0:02:57.2]} 4.
O-O {[%clk 0:03:01.5]} 4... d6 {[%clk 0:02:56.5]} 5. h3 {[%clk 0:02:58.4]} 5...
Nf6 {[%clk 0:02:54.7]} 6. c3 {[%clk 0:02:50.2]} 6... O-O {[%clk 0:02:53.8]} 7.
d3 {[%clk 0:02:45.6]} 7... a6 {[%clk 0:02:51.4]} 8. Bb3 {[%clk 0:02:45.6]} 8...
b5 {[%clk 0:02:50.6]} 9. Re1 {[%clk 0:02:41.2]} 9... Be6 {[%clk 0:02:50.1]} 10.
Bc2 {[%clk 0:02:35.9]} 10... Bb6 {[%clk 0:02:49.4]} 11. Qd2 {[%clk 0:02:33.8]}
11... Re8 {[%clk 0:02:46.8]} 12. Qe2 {[%clk 0:02:25.3]} 12... d5 {[%clk
0:02:42.4]} 13. Bg5 {[%clk 0:02:17.5]} 13... d4 {[%clk 0:02:37.2]} 14. cxd4
{[%clk 0:02:05.3]} 14... Nxd4 {[%clk 0:02:36.7]} 15. Nxd4 {[%clk 0:02:05.6]}
15... Bxd4 {[%clk 0:02:36.6]} 16. Nc3 {[%clk 0:02:05.5]} 16... h6 {[%clk
0:02:32.4]} 17. Be3 {[%clk 0:02:03.1]} 17... c5 {[%clk 0:02:30.5]} 18. Rac1
{[%clk 0:02:02.2]} 18... Rc8 {[%clk 0:02:21.7]} 19. f4 {[%clk 0:01:49.4]} 19...
exf4 {[%clk 0:02:17.5]} 20. Bxd4 {[%clk 0:01:41.6]} 20... Qxd4+ {[%clk
0:02:18.4]} 21. Kh1 {[%clk 0:01:40.8]} 21... b4 {[%clk 0:02:18.8]} 22. Nd1
{[%clk 0:01:40]} 22... Bxa2 {[%clk 0:02:17.8]} 23. b3 {[%clk 0:01:36.5]} 23...
a5 {[%clk 0:02:13]} 24. Nf2 {[%clk 0:01:31]} 24... a4 {[%clk 0:02:11.7]} 25.
bxa4 {[%clk 0:01:27.9]} 25... b3 {[%clk 0:02:06.4]} 26. Bb1 {[%clk 0:01:28]}
26... b2 {[%clk 0:01:57.9]} 27. Rc2 {[%clk 0:01:21]} 27... Bxb1 {[%clk
0:01:54.4]} 28. Rxb1 {[%clk 0:01:15.1]} 28... c4 {[%clk 0:01:46.4]} 29. dxc4
{[%clk 0:01:10.8]} 29... Nxe4 {[%clk 0:01:22.1]} 30. Nxe4 {[%clk 0:00:54.8]}
30... Rxe4 {[%clk 0:01:23]} 31. Qd2 {[%clk 0:00:53.6]} 31... Qxd2 {[%clk
0:01:15.4]} 32. Rxd2 {[%clk 0:00:54.5]} 32... Rexc4 {[%clk 0:01:11.2]} 33. Rdxb2
{[%clk 0:00:54.1]} 33... Rxa4 {[%clk 0:01:11.2]} 34. Rb7 {[%clk 0:00:52.4]}
34... Rac4 {[%clk 0:01:09.5]} 35. Kh2 {[%clk 0:00:47.4]} 35... Rc2 {[%clk
0:01:05.7]} 36. Rd1 {[%clk 0:00:45.9]} 36... f3 {[%clk 0:01:02.9]} 37. Kg3
{[%clk 0:00:43.8]} 37... fxg2 {[%clk 0:01:00.5]} 38. Rg1 {[%clk 0:00:42.4]}
38... R8c3+ {[%clk 0:00:59.6]} 39. Kh2 {[%clk 0:00:42.7]} 39... Rf3 {[%clk
0:00:52.6]} 40. Rb8+ {[%clk 0:00:32.8]} 40... Kh7 {[%clk 0:00:52.2]} 41. Rb4
{[%clk 0:00:31]} 41... Rcc3 {[%clk 0:00:51.3]} 42. Rxg2 {[%clk 0:00:30.1]} 42...
Rxh3+ {[%clk 0:00:51]} 43. Kg1 {[%clk 0:00:30.1]} 43... Rhg3 {[%clk 0:00:51.4]}
44. Rxg3 {[%clk 0:00:23.2]} 44... Rxg3+ {[%clk 0:00:50.4]} 45. Kh2 {[%clk
0:00:22.1]} 45... Rg5 {[%clk 0:00:49.7]} 0-1

[Event "*** SCC Grand Prix: Titled Tuesday Blitz"]
[Site "Chess.com"]
[Date "2020.09.08"]
[Round "1"]
[White "Rap_woyska"]
[Black "Caracternin123"]
[Result "0-1"]
[WhiteElo "2348"]
[BlackElo "2681"]
[TimeControl "180+1"]
[EndTime "10:06:51 PDT"]
[Termination "Caracternin123 won by resignation"]

1. c4 {[%clk 0:02:57.7]} 1... e6 {[%clk 0:02:59.6]} 2. Nf3 {[%clk 0:02:56.5]}
2... d5 {[%clk 0:02:59.9]} 3. e3 {[%clk 0:02:57.4]} 3... Nf6 {[%clk 0:02:59.7]}
4. b3 {[%clk 0:02:57.9]} 4... b6 {[%clk 0:02:59.7]} 5. Bb2 {[%clk 0:02:58]} 5...
Bb7 {[%clk 0:02:59.9]} 6. Nc3 {[%clk 0:02:57.4]} 6... Nbd7 {[%clk 0:03:00]} 7.
cxd5 {[%clk 0:02:56.9]} 7... exd5 {[%clk 0:02:59.9]} 8. d4 {[%clk 0:02:56.2]}
8... a6 {[%clk 0:03:00.3]} 9. Bd3 {[%clk 0:02:56.2]} 9... Bd6 {[%clk 0:03:00.7]}
10. O-O {[%clk 0:02:52.3]} 10... O-O {[%clk 0:03:00.1]} 11. Rc1 {[%clk
0:02:49.7]} 11... Qe7 {[%clk 0:02:59.4]} 12. Ne2 {[%clk 0:02:44.8]} 12... Ne4
{[%clk 0:02:55.4]} 13. Nf4 {[%clk 0:02:40.5]} 13... f5 {[%clk 0:02:47.6]} 14. b4
{[%clk 0:02:28.5]} 14... g5 {[%clk 0:02:35]} 15. Nh5 {[%clk 0:02:02.6]} 15... c6
{[%clk 0:02:25.7]} 16. a3 {[%clk 0:02:00.1]} 16... Rae8 {[%clk 0:02:22.4]} 17.
Rc2 {[%clk 0:01:55.9]} 17... Qf7 {[%clk 0:02:18.9]} 18. Ng3 {[%clk 0:01:54.2]}
18... f4 {[%clk 0:02:17.8]} 19. Nxe4 {[%clk 0:01:48.6]} 19... dxe4 {[%clk
0:02:18.2]} 20. Bc4 {[%clk 0:01:48.5]} 20... exf3 {[%clk 0:02:09]} 21. gxf3
{[%clk 0:01:15.2]} 21... Re6 {[%clk 0:02:05]} 22. Bxe6 {[%clk 0:01:08.8]} 22...
Qxe6 {[%clk 0:02:05.9]} 23. e4 {[%clk 0:01:08.6]} 23... Qh3 {[%clk 0:01:57.4]}
24. Kh1 {[%clk 0:01:01.4]} 24... Be7 {[%clk 0:01:27.6]} 25. Rg1 {[%clk 0:01:01]}
25... h6 {[%clk 0:01:26.6]} 26. Rg2 {[%clk 0:00:58.8]} 26... Nf6 {[%clk
0:01:25]} 27. Re2 {[%clk 0:00:52.8]} 27... Rd8 {[%clk 0:01:24.6]} 28. Rd2 {[%clk
0:00:52.1]} 28... Kh7 {[%clk 0:01:21.5]} 29. Qc2 {[%clk 0:00:50.1]} 29... Kg8
{[%clk 0:01:20.7]} 30. Qd1 {[%clk 0:00:49.5]} 30... Rd7 {[%clk 0:01:18.8]} 31.
d5 {[%clk 0:00:48.3]} 31... cxd5 {[%clk 0:01:18.4]} 32. Bxf6 {[%clk 0:00:48.5]}
32... Bxf6 {[%clk 0:01:18.7]} 33. exd5 {[%clk 0:00:49]} 33... Rd6 {[%clk
0:01:17.7]} 34. Rd3 {[%clk 0:00:48]} 34... h5 {[%clk 0:01:16.2]} 35. Qe2 {[%clk
0:00:45.3]} 35... Kf7 {[%clk 0:01:14.2]} 36. Qd1 {[%clk 0:00:42.1]} 36... Qf5
{[%clk 0:01:14.3]} 37. Qb3 {[%clk 0:00:35.1]} 37... Rxd5 {[%clk 0:01:12]} 38.
Rxd5 {[%clk 0:00:34.3]} 38... Bxd5 {[%clk 0:01:12]} 39. Qd1 {[%clk 0:00:32.4]}
39... Bc6 {[%clk 0:01:11.2]} 40. h3 {[%clk 0:00:31.1]} 40... Qxh3+ {[%clk
0:01:08.5]} 41. Kg1 {[%clk 0:00:30]} 41... Bxf3 {[%clk 0:01:08.7]} 42. Qb3+
{[%clk 0:00:28.3]} 42... Kg7 {[%clk 0:01:08.9]} 43. Rh2 {[%clk 0:00:26.5]} 43...
Qg4+ {[%clk 0:01:09.2]} 44. Kf1 {[%clk 0:00:26.4]} 44... Be2+ {[%clk 0:01:09.6]}
45. Ke1 {[%clk 0:00:24.7]} 45... Qg1+ {[%clk 0:01:10.3]} 46. Kxe2 {[%clk
0:00:25]} 46... Qxh2 {[%clk 0:01:11.2]} 47. Qe6 {[%clk 0:00:24.6]} 47... Qh4
{[%clk 0:01:09.2]} 48. Qd7+ {[%clk 0:00:21.7]} 48... Kh6 {[%clk 0:01:09.7]} 49.
Qf7 {[%clk 0:00:19.3]} 49... Qg4+ {[%clk 0:01:09.9]} 50. f3 {[%clk 0:00:18]}
50... Qf5 {[%clk 0:01:10.8]} 51. Qf8+ {[%clk 0:00:17.9]} 51... Kg6 {[%clk
0:01:10.3]} 52. Qe8+ {[%clk 0:00:15.3]} 52... Kg7 {[%clk 0:01:10.4]} 53. Qd7+
{[%clk 0:00:15.8]} 53... Qxd7 {[%clk 0:01:10.4]} 0-1

[Event "*** SCC Grand Prix: Titled Tuesday Blitz"]
[Site "Chess.com"]
[Date "2020.09.08"]
[Round "1"]
[White "renehp"]
[Black "jamik13"]
[Result "1-0"]
[WhiteElo "2538"]
[BlackElo "2194"]
[TimeControl "180+1"]
[EndTime "10:06:52 PDT"]
[Termination "renehp won on time"]

1. e4 {[%clk 0:02:57.8]} 1... e5 {[%clk 0:02:58.5]} 2. Nf3 {[%clk 0:02:56.5]}
2... Nc6 {[%clk 0:02:58.7]} 3. d4 {[%clk 0:02:54]} 3... exd4 {[%clk 0:02:58.2]}
4. Nxd4 {[%clk 0:02:54.9]} 4... Bc5 {[%clk 0:02:57.4]} 5. Nb3 {[%clk 0:02:54.6]}
5... Bb6 {[%clk 0:02:56.3]} 6. Nc3 {[%clk 0:02:55.2]} 6... Nge7 {[%clk
0:02:50.7]} 7. Bg5 {[%clk 0:02:53.7]} 7... h6 {[%clk 0:02:47.9]} 8. Bh4 {[%clk
0:02:52.9]} 8... d6 {[%clk 0:02:40.9]} 9. Qe2 {[%clk 0:02:48.2]} 9... Nd4 {[%clk
0:02:28]} 10. Nxd4 {[%clk 0:02:47.9]} 10... Bxd4 {[%clk 0:02:28.1]} 11. Qd2
{[%clk 0:02:48.4]} 11... Bxc3 {[%clk 0:02:20.6]} 12. Qxc3 {[%clk 0:02:45.7]}
12... O-O {[%clk 0:02:21]} 13. O-O-O {[%clk 0:02:45.2]} 13... Qe8 {[%clk
0:02:15]} 14. f4 {[%clk 0:02:41.1]} 14... Ng6 {[%clk 0:02:11.5]} 15. Bg3 {[%clk
0:02:33.8]} 15... Qxe4 {[%clk 0:02:10.1]} 16. Bd3 {[%clk 0:02:30.9]} 16... Qxg2
{[%clk 0:02:06.8]} 17. Rhg1 {[%clk 0:02:27.9]} 17... Qc6 {[%clk 0:02:03]} 18.
Qd2 {[%clk 0:02:14.8]} 18... Bg4 {[%clk 0:02:01]} 19. Rdf1 {[%clk 0:02:07]}
19... Rae8 {[%clk 0:01:53.9]} 20. f5 {[%clk 0:02:05.2]} 20... Ne7 {[%clk
0:01:22.6]} 21. f6 {[%clk 0:02:01.6]} 21... Ng6 {[%clk 0:01:21.1]} 22. fxg7
{[%clk 0:01:56.1]} 22... Kxg7 {[%clk 0:01:20.4]} 23. Bxg6 {[%clk 0:01:49]} 23...
fxg6 {[%clk 0:01:10.6]} 24. Qd4+ {[%clk 0:01:47]} 24... Kh7 {[%clk 0:01:09.7]}
25. Qxg4 {[%clk 0:01:46.6]} 25... Re4 {[%clk 0:01:02.5]} 26. Qd1 {[%clk
0:01:36.7]} 26... Qe8 {[%clk 0:00:39.8]} 27. Rxf8 {[%clk 0:01:34.8]} 27... Qxf8
{[%clk 0:00:39.8]} 28. Rf1 {[%clk 0:01:30.1]} 28... Qe7 {[%clk 0:00:39.8]} 29.
Qd5 {[%clk 0:01:26.6]} 29... Re6 {[%clk 0:00:22]} 30. b3 {[%clk 0:01:20.6]}
30... c6 {[%clk 0:00:19.8]} 31. Qd3 {[%clk 0:01:17.2]} 31... d5 {[%clk
0:00:18.2]} 32. Kb2 {[%clk 0:01:15.1]} 32... Re4 {[%clk 0:00:17.4]} 33. Qf3
{[%clk 0:01:10.4]} 33... Kg7 {[%clk 0:00:14.6]} 34. Bf2 {[%clk 0:01:06.2]} 34...
a5 {[%clk 0:00:12.8]} 35. c3 {[%clk 0:01:06.1]} 35... Re2+ {[%clk 0:00:09.5]}
36. Kb1 {[%clk 0:01:03.4]} 36... Qe4+ {[%clk 0:00:05.9]} 37. Qxe4 {[%clk
0:01:03.3]} 37... dxe4 {[%clk 0:00:05]} 38. Bd4+ {[%clk 0:01:03.5]} 38... Kg8
{[%clk 0:00:04.9]} 39. Rf6 {[%clk 0:01:02.8]} 39... Rxh2 {[%clk 0:00:01.9]} 40.
Rxg6+ {[%clk 0:01:02.5]} 40... Kf8 {[%clk 0:00:01.5]} 41. Re6 {[%clk 0:01:02.2]}
1-0

[Event "*** SCC Grand Prix: Titled Tuesday Blitz"]
[Site "Chess.com"]
[Date "2020.09.08"]
[Round "1"]
[White "Anna_ChessMate"]
[Black "LubovMarkelova"]
[Result "1-0"]
[WhiteElo "2534"]
[BlackElo "2192"]
[TimeControl "180+1"]
[EndTime "10:06:54 PDT"]
[Termination "Anna_ChessMate won by resignation"]

1. d4 {[%clk 0:03:00.9]} 1... d5 {[%clk 0:02:58.6]} 2. c4 {[%clk 0:02:53.5]}
2... c6 {[%clk 0:02:58.2]} 3. Nc3 {[%clk 0:02:52.1]} 3... Nf6 {[%clk 0:02:57.5]}
4. Nf3 {[%clk 0:02:52.2]} 4... e6 {[%clk 0:02:57.5]} 5. Bg5 {[%clk 0:02:51.2]}
5... Nbd7 {[%clk 0:02:56.1]} 6. e3 {[%clk 0:02:49.5]} 6... h6 {[%clk 0:02:55.7]}
7. Bh4 {[%clk 0:02:49.1]} 7... Be7 {[%clk 0:02:52.6]} 8. Qc2 {[%clk 0:02:47.2]}
8... O-O {[%clk 0:02:52.1]} 9. O-O-O {[%clk 0:02:47.3]} 9... b6 {[%clk
0:02:43.7]} 10. cxd5 {[%clk 0:02:46.8]} 10... cxd5 {[%clk 0:02:38.5]} 11. Kb1
{[%clk 0:02:45.5]} 11... Bb7 {[%clk 0:02:32.3]} 12. Bd3 {[%clk 0:02:44.6]} 12...
Rc8 {[%clk 0:02:31.4]} 13. Nd2 {[%clk 0:02:26.7]} 13... Ne4 {[%clk 0:02:22.6]}
14. Bxe4 {[%clk 0:02:10.9]} 14... Bxh4 {[%clk 0:02:19.9]} 15. Bh7+ {[%clk
0:02:06.1]} 15... Kh8 {[%clk 0:02:16.3]} 16. g3 {[%clk 0:02:06]} 16... Be7
{[%clk 0:02:09.7]} 17. Bd3 {[%clk 0:01:59.4]} 17... Nf6 {[%clk 0:02:03.2]} 18.
Ka1 {[%clk 0:01:48.6]} 18... Bb4 {[%clk 0:02:02.5]} 19. Ndb1 {[%clk 0:01:47.2]}
19... Ne4 {[%clk 0:01:58.6]} 20. Bxe4 {[%clk 0:01:45.4]} 20... dxe4 {[%clk
0:01:58.8]} 21. Qa4 {[%clk 0:01:46]} 21... Qe7 {[%clk 0:01:48.7]} 22. Rc1 {[%clk
0:01:24]} 22... Bd5 {[%clk 0:01:42.6]} 23. Nxd5 {[%clk 0:01:11.6]} 23... exd5
{[%clk 0:01:42.3]} 24. Qa6 {[%clk 0:01:11.6]} 24... Rxc1 {[%clk 0:01:30.9]} 25.
Rxc1 {[%clk 0:01:12.5]} 25... Qf6 {[%clk 0:01:07]} 26. a3 {[%clk 0:01:10]} 26...
Ba5 {[%clk 0:00:50.2]} 27. Rc2 {[%clk 0:00:59]} 27... Be1 {[%clk 0:00:42.1]} 28.
Qe2 {[%clk 0:00:57.5]} 28... Ba5 {[%clk 0:00:31.8]} 29. b4 {[%clk 0:00:57]}
29... Bxb4 {[%clk 0:00:24.8]} 30. axb4 {[%clk 0:00:57.9]} 30... a5 {[%clk
0:00:25.3]} 31. b5 {[%clk 0:00:57.1]} 31... Qe7 {[%clk 0:00:16.1]} 32. Qd2
{[%clk 0:00:54.3]} 32... a4 {[%clk 0:00:13.9]} 33. Rc6 {[%clk 0:00:51.6]} 33...
a3 {[%clk 0:00:10]} 34. Qc3 {[%clk 0:00:51.5]} 34... a2 {[%clk 0:00:09.5]} 35.
Nd2 {[%clk 0:00:52.1]} 35... Kh7 {[%clk 0:00:06.9]} 36. Kxa2 {[%clk 0:00:41.7]}
36... Ra8+ {[%clk 0:00:06.8]} 37. Kb2 {[%clk 0:00:42.3]} 37... Qa3+ {[%clk
0:00:06.2]} 38. Qxa3 {[%clk 0:00:42]} 1-0